bitfinex/quotes_ETHUSD_20240821
["timestamp","ask_amount","ask_price","bid_price","bid_amount"]
[1724249621177,0.712068,2614.4,2612.2,3.82819]
[1724249621178,3.82593,2613.8,2612.9,3.82705]
[1724249621552,3.1345,2613.6,2612.9,3.82705]
[1724249621747,3.1345,2613.6,2613.0,3.87280735]
[1724249621947,3.1345,2613.6,2613.0,0.04589735]
[1724249622148,3.1345,2613.6,2613.0,3.87286735]
[1724249622500,3.82593,2613.8,2613.0,0.04589735]
[1724249622501,3.82667,2613.3,2613.0,0.04589735]
[1724249622641,3.2806,2613.2,2613.0,0.04589735]
[1724249622846,3.82696,2613.1,2612.3,3.82797]
[1724249623080,7.10756,2613.1,2612.3,3.82797]
[1724249623287,3.2806,2613.1,2612.4,0.03986592]
[1724249623645,3.2806,2613.1,2612.5,3.82765]
[1724249624095,3.2806,2613.1,2612.6,0.03969078]
[1724249624260,8.200878,2613.1,2612.6,0.03969078]
[1724249624661,4.373998,2613.1,2612.0,4.52842]
[1724249624896,3.2806,2613.1,2612.7,0.03960322]
[1724249625112,3.2806,2613.1,2612.4,4.52779]
[1724249625263,3.27936668,2613.1,2612.9,3.82705]
[1724249625595,3.27936668,2613.1,2613.0,0.04589735]
[1724249625950,3.82703,2613.0,2612.3,3.82804]
[1724249626149,3.27936668,2613.1,2613.0,0.03934058]
[1724249626365,3.27936668,2613.1,2612.3,3.82804]
[1724249626366,4.37266135,2613.1,2612.3,3.82796]
[1724249626575,4.37266135,2613.1,2613.0,0.03934058]
[1724249626576,3.27936668,2613.1,2613.0,0.03934058]
[1724249626778,3.27936668,2613.1,2612.4,3.82785]
[1724249626980,3.27936668,2613.1,2613.0,0.03934058]
[1724249627215,3.27936668,2613.1,2612.5,3.82775]
[1724249627352,3.27936668,2613.1,2613.0,0.03934058]
[1724249627551,3.27936668,2613.1,2612.4,3.82781]
[1724249627791,3.98997335,2613.1,2613.0,0.03934058]
[1724249627994,3.82687,2613.1,2612.3,3.82803]
[1724249628197,7.09107,2613.1,2613.0,0.03934058]
[1724249628428,3.2642,2613.1,2612.3,3.82803]
[1724249628636,3.82717,2612.9,2612.2,3.82812]
[1724249628802,3.82717,2612.9,2612.4,0.03986592]
[1724249628803,3.3857,2612.9,2612.4,0.03986592]
[1724249629002,3.3857,2612.9,2612.4,7.65562]
[1724249629336,3.3857,2612.9,2612.5,0.03778912]
[1724249629543,4.139617,2612.9,2612.5,0.03778912]
[1724249629843,4.139617,2612.9,2612.2,3.8281]
[1724249629993,3.4192,2612.7,2612.0,7.65673]
[1724249630345,3.4192,2612.7,2612.1,3.82828]
[1724249630549,3.4192,2612.7,2612.0,3.82836]
[1724249630842,6.94302,2612.6,2612.1,0.03857103]
[1724249631022,3.1154,2612.6,2612.1,0.03857103]
[1724249631745,11.06028,2612.2,2612.1,0.03857103]
[1724249631893,3.4039,2611.8,2610.7,0.7]
[1724249632099,3.82916,2611.6,2610.8,3.83015]
[1724249632338,3.82945,2611.4,2610.8,0.03979172]
[1724249632542,3.343,2611.3,2610.8,0.03979172]
[1724249632843,3.343,2611.3,2610.9,0.03970989]
[1724249633303,3.343,2611.3,2610.7,3.83038]
[1724249633649,3.343,2611.3,2611.0,3.82985]
[1724249633792,3.343,2611.3,2611.0,3.82987]
[1724249633992,3.343,2611.3,2611.1,0.03954624]
[1724249634221,3.343,2611.3,2610.5,3.83054]
[1724249634390,3.343,2611.3,2611.2,0.03946442]
[1724249634610,4.060245,2611.3,2610.7,3.83028]
[1724249634828,4.060245,2611.3,2611.2,0.03946442]
[1724249635035,4.060245,2611.3,2610.5,3.83054]
[1724249635254,4.060245,2611.3,2611.2,0.03946442]
[1724249635430,4.060245,2611.3,2609.9,4.521]
[1724249635431,3.343,2611.3,2609.8,0.7]
[1724249635610,4.521,2611.7,2609.7,3.83171]
[1724249635611,3.1435,2610.5,2609.7,3.83171]
[1724249635816,3.1435,2610.5,2609.7,3.83181]
[1724249636109,3.1435,2610.5,2609.5,3.83211]
[1724249636315,6.97418,2610.5,2609.7,3.83172]
[1724249636661,3.1435,2610.5,2609.7,1.11403149]
[1724249636827,3.1435,2610.5,2610.4,3.83083]
[1724249637188,3.1435,2610.5,2610.1,3.83121]
[1724249637393,3.1435,2610.5,2609.9,3.83142]
[1724249637648,3.1435,2610.5,2610.1,3.83114]
[1724249638006,3.1435,2610.5,2610.4,3.83083]
[1724249638207,1.9933647,2612.1,2611.0,3.82985]
[1724249638208,2.9828,2611.6,2611.0,3.82985]
[1724249638534,1.19163346,2612.1,2610.2,8.35207]
[1724249638535,2.8446,2612.2,2610.3,0.7]
[1724249638846,2.8446,2611.3,2610.9,3.83005]
[1724249639050,2.8446,2611.3,2610.7,3.83032]
[1724249639252,2.8446,2611.3,2611.1,3.82969]
[1724249639754,2.8446,2611.3,2611.2,0.03904542]
[1724249640300,2.8446,2611.3,2611.2,8.39834542]
[1724249640502,2.8446,2612.6,2611.2,1.57887996]
[1724249640828,2.7363,2612.0,2611.2,3.86858542]
[1724249641035,2.7363,2612.0,2611.2,0.03904542]
[1724249641230,2.7846,2611.8,2610.8,3.83017]
[1724249641443,3.82921,2611.6,2611.3,0.03896361]
[1724249641657,3.82921,2611.6,2610.8,3.83012]
[1724249641658,2.7846,2611.5,2610.8,3.83012]
[1724249641820,2.7846,2611.5,2610.6,3.83044]
[1724249641821,2.7846,2611.4,2610.6,3.83044]
[1724249642150,2.7846,2611.1,2610.2,3.83098]
[1724249642301,2.7187,2611.0,2610.3,3.83087]
[1724249642924,2.7187,2610.7,2610.0,3.83141]
[1724249643321,3.83077,2610.5,2609.4,0.7]
[1724249643560,2.8171,2610.3,2609.2,8.35354]
[1724249643721,2.8171,2610.3,2608.7,0.7]
[1724249643722,3.83166,2609.9,2609.0,3.83276]
[1724249643909,0.383077,2610.4,2609.1,3.83263]
[1724249643910,2.8171,2609.8,2609.1,3.83263]
[1724249644105,2.8171,2609.8,2609.5,3.83208]
[1724249644304,2.8171,2609.8,2609.4,3.83215]
[1724249644509,2.8171,2609.8,2609.0,0.7]
[1724249644510,2.8171,2609.8,2609.5,3.83214]
[1724249644749,2.8171,2609.8,2609.3,3.83236]
[1724249645053,2.8171,2609.8,2608.8,4.521]
[1724249645203,2.8171,2609.8,2609.1,3.83264]
[1724249645409,3.83144,2610.0,2608.2,0.42743378]
[1724249645410,2.9281,2609.3,2608.2,0.42743378]
[1724249645610,3.83586,2607.0,2606.3,0.19259106]
[1724249645856,3.83586,2607.0,2605.4,1.94396983]
[1724249645857,2.8544,2606.5,2605.5,0.39906564]
[1724249646020,2.8544,2606.5,2604.7,0.7]
[1724249646021,2.8544,2606.5,2605.2,3.83846]
[1724249646221,3.837,2606.2,2604.9,3.83889]
[1724249646578,2.9373,2605.9,2604.7,4.53911]
[1724249646775,2.9373,2605.9,2604.8,7.84344358]
[1724249646970,3.0,2605.8,2604.7,0.7]
[1724249647138,1.30161885,2605.8,2605.0,0.7]
[1724249647493,2.9108,2605.7,2605.0,0.7]
[1724249647801,2.9108,2605.7,2604.7,0.7]
[1724249647946,2.9108,2605.7,2604.8,3.83905]
[1724249648396,2.8904,2605.5,2604.8,3.83905]
[1724249648606,2.8904,2605.5,2604.4,0.01346363]
[1724249648741,3.83862,2605.1,2604.4,0.01346363]
[1724249648941,2.7792,2604.6,2604.4,0.01346363]
[1724249649148,2.7792,2604.5,2602.2,0.7]
[1724249649342,2.9089,2604.0,2602.7,3.8421]
[1724249649573,2.9089,2604.0,2602.8,0.7]
[1724249649775,2.9089,2604.0,2603.3,0.7]
[1724249649975,2.9089,2604.0,2603.7,4.54063]
[1724249650240,2.9089,2604.0,2603.4,0.7]
[1724249650459,2.9089,2604.0,2603.7,3.84056]
[1724249650660,2.9089,2604.0,2603.8,8.38088]
[1724249650865,3.0,2605.4,2604.1,0.7]
[1724249651062,3.83879,2605.0,2603.2,0.7]
[1724249651316,3.83938,2604.6,2603.3,3.84125]
[1724249651492,3.83819,2605.4,2603.8,3.84049]
[1724249651493,6.8385,2605.2,2603.8,3.84049]
[1724249651697,3.83865,2605.1,2603.9,3.84037]
[1724249652004,3.83894,2604.9,2602.9,0.7]
[1724249652206,4.521,2605.3,2603.3,3.84121]
[1724249652207,0.683894,2604.8,2603.3,3.84121]
[1724249652523,3.83775,2605.7,2604.5,3.83949]
[1724249652700,4.521,2606.1,2603.9,3.84024]
[1724249652863,4.521,2605.7,2603.7,3.84067]
[1724249653070,3.88705,2606.2,2601.9,0.7]
[1724249653071,4.521,2603.8,2601.9,0.7]
[1724249653326,4.15,2604.8,2600.9,3.84475]
[1724249653327,4.521,2603.2,2600.9,3.84475]
[1724249653520,3.84094,2603.6,2600.9,3.84475]
[1724249653521,3.84296,2602.2,2600.9,3.84475]
[1724249653723,3.84216,2602.7,2601.1,3.84451]
[1724249653864,2.8673,2602.8,2601.0,0.7458505]
[1724249654272,7.68846,2601.3,2601.1,0.04576805]
[1724249654560,3.28493,2602.7,2599.1,0.35801634]
[1724249654561,2.828,2600.7,2599.1,0.35801634]
[1724249654686,3.258846,2601.2,2597.6,3.8496]
[1724249654687,2.828,2599.9,2599.0,0.7]
[1724249654891,3.84345,2601.9,2600.4,7.69109]
[1724249654892,2.828,2600.5,2600.4,7.69109]
[1724249655141,2.828,2601.7,2600.4,0.35801634]
[1724249655350,2.828,2601.3,2600.1,0.7]
[1724249655509,2.828,2601.3,2598.7,3.89802]
[1724249655510,2.828,2601.3,2600.9,3.84474]
[1724249655849,2.828,2601.3,2599.9,35.35801634]
[1724249655850,2.828,2602.0,2601.1,0.7]
[1724249656007,2.828,2602.0,2601.0,0.7]
[1724249656213,2.828,2602.0,2601.8,3.84346]
[1724249656540,2.828,2602.0,2601.5,3.84379]
[1724249656857,2.828,2602.0,2601.1,6.84452]
[1724249656990,3.84351,2601.8,2600.0,0.7]
[1724249657189,3.84245,2602.6,2600.0,0.7]
[1724249657190,2.931,2601.1,2600.0,0.7]
[1724249657393,2.931,2601.1,2600.9,3.84472]
[1724249657590,2.931,2601.1,2600.4,3.84546]
[1724249657945,2.931,2601.1,2600.8,3.84487]
[1724249658134,2.931,2601.1,2600.8,0.769012]
[1724249658340,2.8551,2602.6,2601.0,0.7]
[1724249658652,3.84077,2603.7,2600.2,4.639]
[1724249658653,2.867,2602.5,2600.9,3.0]
[1724249658850,0.05,2603.3,2600.9,0.7]
[1724249658851,2.867,2602.1,2600.9,0.7]
[1724249658993,2.867,2602.1,2601.0,0.55]
[1724249659212,2.8422,2601.9,2599.5,3.84687]
[1724249659496,3.84301,2602.2,2598.5,0.7]
[1724249659497,3.84587,2600.2,2598.5,0.7]
[1724249659695,3.84587,2600.2,2597.7,9.57330968]
[1724249659696,2.8308,2600.4,2599.5,3.84689]
[1724249659927,2.8308,2600.4,2599.5,0.384689]
[1724249660091,2.8308,2600.4,2599.7,3.84654]
[1724249660296,2.8308,2600.4,2599.6,0.04979411]
[1724249660536,3.0,2600.8,2598.5,3.84824]
[1724249660537,2.8667,2599.7,2598.5,3.84824]
[1724249660705,6.71376,2599.4,2598.3,3.84864]
[1724249660909,6.71376,2599.4,2597.7,3.84945]
[1724249660910,2.8667,2599.4,2598.4,0.7]
[1724249661142,2.8667,2599.4,2598.9,3.84765]
[1724249661445,2.8667,2599.4,2599.3,7.69436]
[1724249661998,2.8667,2599.4,2599.1,3.84745]
[1724249662197,2.8667,2599.4,2599.2,0.05090086]
[1724249662394,7.69436,2599.3,2597.8,0.7]
[1724249662604,2.9784,2598.9,2597.9,3.84922]
[1724249662808,2.9784,2598.2,2597.2,3.85028]
[1724249663162,2.9784,2598.2,2596.1,3.85184]
[1724249663163,2.9784,2598.2,2596.5,3.8513]
[1724249663452,0.682616,2598.8,2595.2,0.7]
[1724249663453,2.9708,2596.8,2595.2,0.7]
[1724249663661,2.9708,2596.8,2596.1,3.85193]
[1724249663942,2.9708,2596.8,2595.8,0.04545193]
[1724249664156,3.0,2596.7,2596.2,0.04512084]
[1724249664501,2.8519,2596.6,2595.7,0.299575]
[1724249664812,2.8519,2596.6,2596.3,3.85162]
[1724249665044,2.8519,2596.6,2596.5,3.85133]
[1724249665258,2.8519,2596.6,2596.4,0.04495533]
[1724249665545,2.8519,2596.6,2595.8,3.85223]
[1724249665698,4.13638,2596.6,2595.7,0.299575]
[1724249665901,2.9081,2596.5,2595.7,0.299575]
[1724249666164,2.8647,2595.9,2594.2,3.85471]
[1724249666465,2.7846,2595.4,2594.3,0.04828066]
[1724249666642,2.7846,2594.8,2592.9,0.7]
[1724249666955,2.7846,2594.8,2594.7,7.70802]
[1724249667252,2.7846,2597.3,2595.6,0.7]
[1724249667432,2.7846,2597.3,2596.4,3.85135]
[1724249667433,3.169613,2597.3,2596.4,3.85135]
[1724249667633,3.169613,2597.3,2595.7,0.04551158]
[1724249667634,2.8739,2597.2,2595.7,0.04551158]
[1724249667974,2.8739,2597.0,2595.6,0.7]
[1724249668160,2.8739,2597.0,2596.3,0.7]
[1724249668454,2.8739,2597.0,2595.8,3.85236]
[1724249668455,2.8739,2597.0,2596.7,3.85101]
[1724249668656,2.8739,2597.0,2596.9,3.85074]
[1724249668860,2.8739,2597.0,2596.6,3.85106]
[1724249669018,2.8739,2597.0,2596.9,0.04694404]
[1724249669359,2.8739,2597.0,2595.5,0.46907725]
[1724249669360,3.85124,2596.6,2595.0,3.85346]
[1724249669560,2.7233,2596.4,2595.0,0.7]
[1724249669693,2.7233,2596.4,2596.3,3.85163]
[1724249669899,2.7233,2597.2,2597.1,3.85044]
[1724249670123,2.7233,2597.2,2597.1,7.70088]
[1724249670327,2.7233,2597.2,2596.1,3.85184]
[1724249670548,2.99563,2597.2,2596.5,3.8513]
[1724249670700,2.9126,2597.1,2596.4,3.85136]
[1724249670894,2.9126,2597.1,2596.8,3.85077]
[1724249671466,2.9126,2597.1,2597.0,7.70118]
[1724249671615,2.9126,2597.1,2597.0,3.85059]
[1724249671795,2.9126,2597.1,2596.9,0.04537924]
[1724249671997,2.9126,2597.1,2597.0,0.04529652]
[1724249672311,2.9126,2597.1,2596.6,3.85115]
[1724249672541,2.9126,2597.1,2596.2,0.46907725]
[1724249672542,2.9126,2597.1,2597.0,3.89588652]
[1724249672764,3.20386,2597.1,2595.8,3.85231]
[1724249673082,6.56857,2596.9,2595.8,3.85231]
[1724249673294,2.7178,2596.9,2596.4,3.85148]
[1724249673582,3.0,2596.8,2596.4,3.85148]
[1724249673795,2.7387,2596.6,2595.5,3.8528]
[1724249673932,2.7387,2596.6,2595.7,3.85252]
[1724249674135,2.7387,2596.4,2594.5,0.7]
[1724249674333,2.7387,2596.1,2595.0,3.85352]
[1724249674534,3.85252,2595.7,2594.6,4.25109118]
[1724249674731,2.8472,2595.6,2594.9,3.85371]
[1724249675033,2.8472,2595.6,2594.4,0.7]
[1724249675263,2.8472,2595.6,2595.5,3.85282]
[1724249675481,2.8472,2595.6,2594.5,0.455452]
[1724249675630,5.8472,2595.6,2595.2,3.85324]
[1724249675827,5.8472,2595.6,2595.5,3.85282]
[1724249675828,2.8472,2595.6,2595.5,3.85282]
[1724249676083,0.05,2598.1,2594.5,4.309602]
[1724249676084,2.8688,2595.9,2595.2,3.85326]
[1724249676296,2.8688,2595.9,2595.2,3.85318]
[1724249676581,2.8787,2595.7,2594.1,0.7]
[1724249676750,2.8787,2595.7,2594.0,3.85492]
[1724249676751,2.8787,2595.7,2595.3,3.8531]
[1724249676935,3.0,2595.6,2595.1,3.85339]
[1724249677135,2.8787,2595.7,2595.3,3.85309]
[1724249677368,3.8513,2596.6,2595.1,0.76273484]
[1724249677552,2.7059,2596.7,2595.6,3.85257]
[1724249677877,2.7059,2596.7,2595.1,3.85329]
[1724249677878,2.7059,2596.7,2595.7,3.85247]
[1724249678089,3.84963,2597.7,2594.9,3.85357]
[1724249678090,2.8597,2596.6,2594.9,3.85357]
[1724249678273,2.8597,2595.7,2594.1,3.85479]
[1724249678436,6.67454,2595.5,2594.6,3.85403]
[1724249678637,6.85299,2595.4,2594.4,3.85437]
[1724249678841,6.85299,2595.4,2593.1,0.37739584]
[1724249678842,2.6976,2595.2,2594.0,3.85498]
[1724249679183,1.052734,2595.5,2591.9,0.3829]
[1724249679184,3.85605,2593.4,2591.9,0.3829]
[1724249679481,3.0,2595.1,2591.1,3.85924]
[1724249679482,3.85694,2592.8,2591.1,3.85924]
[1724249679680,3.85694,2592.8,2590.0,3.86089]
[1724249679681,2.8835,2591.9,2591.6,0.3968032]
[1724249679846,2.8835,2591.9,2590.4,0.7]
[1724249679847,2.8835,2591.9,2591.4,3.85883]
[1724249680053,2.8835,2591.9,2591.4,0.43859574]
[1724249680255,2.8835,2591.9,2591.4,0.8349876]
[1724249680452,2.8835,2591.9,2591.5,3.85872]
[1724249680656,3.85646,2593.1,2591.5,3.85872]
[1724249680657,2.9172,2593.4,2592.8,3.85683]
[1724249680864,2.9172,2593.4,2592.8,3.85675]
[1724249681139,2.9172,2593.4,2589.5,0.7]
[1724249681342,2.9172,2593.4,2589.2,0.04877892]
[1724249681343,3.85673,2592.9,2590.5,3.86016]
[1724249681642,2.8434,2591.1,2590.6,0.04681367]
[1724249681978,2.8434,2591.1,2589.9,0.7]
[1724249682137,2.8434,2591.1,2589.5,0.47410952]
[1724249682502,3.0,2591.7,2588.4,4.71]
[1724249682503,2.6702,2591.4,2589.7,4.24352572]
[1724249682640,2.6702,2591.5,2590.0,3.86092]
[1724249682988,3.85908,2591.3,2590.1,0.50499274]
[1724249683205,0.32202,2591.4,2590.4,3.86028]
[1724249683206,2.6702,2591.2,2590.4,3.86028]
[1724249683359,2.8655,2591.0,2590.1,0.04948035]
[1724249683557,3.0,2591.4,2588.4,3.86335]
[1724249683558,2.8655,2590.7,2588.4,3.86335]
[1724249683758,0.55,2591.3,2588.4,0.7]
[1724249683759,2.9415,2590.4,2588.4,0.7]
[1724249683959,2.9415,2590.3,2589.4,3.86181]
[1724249684331,2.9415,2590.3,2588.8,3.86277]
[1724249684332,3.0,2590.2,2589.2,3.86206]
[1724249684494,2.9415,2590.3,2590.2,7.7214]
[1724249685003,2.9415,2590.3,2590.0,3.86099]
[1724249685204,5.9415,2590.3,2588.8,1.09715276]
[1724249685345,2.9415,2590.3,2589.7,3.8614]
[1724249685689,2.9415,2590.3,2590.2,7.7214]
[1724249685888,2.9415,2590.3,2590.2,11.5821]
[1724249686056,3.85805,2592.0,2590.9,3.85955]
[1724249686257,4.71,2593.1,2590.3,3.86051]
[1724249686258,3.85866,2591.6,2590.3,3.86046]
[1724249686590,15.45131,2592.5,2589.6,3.86153]
[1724249686591,3.85933,2591.2,2589.6,3.86153]
[1724249686738,3.85933,2591.2,2589.9,3.86115]
[1724249686944,3.85818,2591.9,2589.5,3.86172]
[1724249686945,0.385933,2591.1,2589.5,3.86172]
[1724249687188,11.594,2591.6,2589.4,3.86189]
[1724249687392,3.85999,2590.7,2588.7,3.86286]
[1724249687573,0.55,2591.5,2588.9,3.86258]
[1724249687574,3.86127,2589.9,2588.9,3.86258]
[1724249687774,3.85994,2590.8,2589.7,3.86133]
[1724249687958,3.85994,2590.8,2589.5,3.86174]
[1724249687959,3.85911,2591.3,2590.0,3.86097]
[1724249688159,3.85911,2591.3,2588.9,0.7]
[1724249688160,3.85981,2590.8,2588.9,0.7]
[1724249688359,3.85937,2591.1,2589.8,3.86128]
[1724249688689,3.85968,2590.9,2589.4,3.86187]
[1724249688889,3.85826,2591.9,2588.5,3.86322]
[1724249688890,3.8594,2591.1,2590.2,3.8607]
[1724249689095,2.887,2591.3,2590.2,0.38607]
[1724249689403,3.85869,2591.6,2589.6,0.7]
[1724249689404,2.887,2591.6,2590.5,3.86018]
[1724249689551,2.887,2591.6,2590.0,3.86088]
[1724249689552,2.887,2591.6,2591.5,3.85876]
[1724249689990,2.887,2591.6,2590.3,0.7]
[1724249690189,2.887,2591.6,2590.8,3.85974]
[1724249690507,2.88603487,2591.6,2590.9,3.85964]
[1724249690685,3.85909,2591.3,2590.3,3.86043]
[1724249690884,6.74476487,2591.6,2590.5,3.86013]
[1724249691040,6.74476487,2591.6,2590.2,3.86059]
[1724249691041,2.88603487,2591.6,2590.2,3.86059]
[1724249691379,3.85886,2591.5,2590.3,3.86054]
[1724249691703,7.405,2592.3,2590.0,3.86096]
[1724249691842,3.85898,2591.4,2589.6,3.86149]
[1724249692042,3.91,2592.8,2591.9,3.85816]
[1724249692294,3.85622,2593.3,2591.6,3.8586]
[1724249692624,3.85512,2594.0,2592.0,3.85794]
[1724249692894,3.85512,2594.0,2590.8,3.85979]
[1724249692895,3.85579,2593.5,2592.1,3.85786]
[1724249693108,3.85647,2593.1,2592.0,3.8579]
[1724249693260,2.8857,2593.0,2591.4,0.7]
[1724249693467,2.8857,2593.0,2592.2,3.85759]
[1724249693676,2.8857,2593.0,2592.6,3.85711]
[1724249693880,2.8857,2593.0,2591.7,0.7]
[1724249693881,2.8857,2593.0,2592.9,3.85668]
[1724249694142,2.8857,2593.0,2591.7,3.0]
[1724249694143,2.8857,2593.0,2592.6,3.85705]
[1724249694348,2.8857,2593.0,2592.0,3.85789]
[1724249694584,2.8857,2593.0,2592.0,0.385789]
[1724249694799,2.8857,2593.0,2592.9,3.85668]
[1724249694944,0.7405,2594.6,2592.9,3.85668]
[1724249694945,2.7685,2593.9,2593.5,3.85577]
[1724249695150,2.7685,2593.9,2593.8,3.85534]
[1724249695574,3.8533,2595.2,2593.4,3.85583]
[1724249695789,2.8045,2595.1,2594.3,3.85459]
[1724249695969,2.8045,2595.1,2594.8,3.85384]
[1724249696162,2.8045,2595.1,2594.9,3.85371]
[1724249696561,2.8045,2595.1,2594.7,3.85399]
[1724249696791,2.8045,2595.1,2594.9,3.85359]
[1724249696962,2.8045,2595.1,2593.9,6.85516]
[1724249696963,3.08495,2595.1,2593.9,3.0]
[1724249697164,3.08495,2595.1,2593.5,1.25]
[1724249697165,2.8045,2595.1,2594.3,3.85457]
[1724249697362,2.8045,2595.1,2594.0,3.85504]
[1724249697679,2.8045,2595.1,2593.8,3.85534]
[1724249697680,3.85373,2594.9,2593.8,3.85534]
[1724249697878,2.8045,2595.1,2593.7,3.85547]
[1724249698075,4.519359,2595.0,2593.5,0.55]
[1724249698245,0.665779,2595.0,2593.5,0.55]
[1724249698446,2.8045,2595.1,2594.5,3.85417]
[1724249698653,3.0,2595.0,2594.8,3.85382]
[1724249698846,2.8045,2595.1,2594.6,0.03768087]
[1724249699045,2.8045,2595.1,2594.0,0.61585898]
[1724249699249,3.08495,2595.1,2593.7,3.85546]
[1724249699512,3.08495,2595.1,2593.0,1.31585898]
[1724249699513,3.85388,2594.8,2594.1,0.04079809]
[1724249699658,3.08495,2595.1,2592.7,0.7]
[1724249699659,6.82312,2594.7,2592.7,0.7]
[1724249699860,0.682312,2594.6,2593.5,3.85573]
[1724249700178,3.85432,2594.5,2593.6,0.03849277]
[1724249700496,3.85446,2594.4,2593.6,0.03849277]
[1724249700692,3.0,2594.6,2592.3,3.85755]
[1724249700693,2.7491,2593.6,2592.3,3.85755]
[1724249700991,2.7491,2593.6,2593.0,3.85641]
[1724249701192,2.7491,2593.6,2592.6,0.7]
[1724249701397,0.28045,2595.1,2594.0,3.85501]
[1724249701398,2.7491,2594.3,2594.0,3.85501]
[1724249701547,2.7491,2594.3,2592.9,0.7]
[1724249701548,2.7491,2594.3,2594.1,3.85479]
[1724249701750,2.7491,2594.3,2594.2,7.7095]
[1724249702349,0.28045,2595.1,2594.4,3.85444]
[1724249702350,2.7712,2595.0,2594.4,3.85444]
[1724249702549,2.7712,2595.0,2594.4,3.85438]
[1724249702785,2.7712,2595.0,2594.3,3.85456]
[1724249703094,2.7712,2595.0,2594.7,3.8539]
[1724249703347,2.7712,2595.0,2594.9,3.85371]
[1724249703553,2.7712,2595.0,2594.7,3.85398]
[1724249703760,2.7712,2595.0,2593.5,3.85571]
[1724249703761,3.04832,2595.0,2594.0,3.85494]
[1724249703958,3.04832,2595.0,2594.4,3.85445]
[1724249704510,3.04832,2595.0,2592.9,3.85666]
[1724249704770,0.3829,2596.5,2590.5,1.99888034]
[1724249704771,2.24181201,2594.9,2593.2,8.831]
[1724249705071,0.39949995,2597.5,2592.2,0.7]
[1724249705072,1.19163346,2598.3,2597.4,0.7]
[1724249705234,1.19163346,2598.3,2596.7,3.85091]
[1724249705235,1.19163346,2598.3,2598.2,3.84881]
[1724249705410,6.57324,2601.5,2598.2,3.84881]
[1724249705411,0.05,2600.4,2598.2,9.22473]
[1724249705725,2.7792,2602.1,2599.7,3.84654]
[1724249705923,0.05,2601.6,2599.8,0.77688994]
[1724249706124,2.7292,2602.1,2600.5,3.84536]
[1724249706125,0.05,2601.4,2600.5,3.84536]
[1724249706365,0.05,2601.4,2599.8,3.7]
[1724249706366,0.05,2601.4,2600.4,3.84544]
[1724249706507,0.05,2600.2,2599.8,3.0]
[1724249706710,0.05,2600.4,2599.8,3.0]
[1724249706948,0.05,2600.4,2600.2,3.84585]
[1724249707128,0.05,2600.8,2600.1,3.846]
[1724249707329,0.05,2600.8,2599.3,3.84718]
[1724249707330,0.05,2600.6,2600.2,3.84582]
[1724249707531,0.05,2600.6,2598.9,35.07691966]
[1724249707532,2.9138,2599.9,2598.7,8.831]
[1724249707758,0.05,2600.8,2598.8,0.55]
[1724249707960,2.989,2600.7,2600.5,3.84537]
[1724249708270,0.05,2600.3,2599.9,3.84628]
[1724249708482,2.989,2600.7,2600.5,3.84528]
[1724249708622,3.039,2600.7,2600.5,3.84528]
[1724249708970,0.05,2600.4,2598.7,8.831]
[1724249709177,2.9167,2599.4,2599.3,6.84715]
[1724249709384,0.05,2598.9,2598.8,3.84789]
[1724249709518,0.05,2598.3,2597.2,8.831]
[1724249709718,2.9536,2598.2,2598.1,3.84896]
[1724249709972,3.84428,2601.3,2597.1,4.55038]
[1724249709973,2.9536,2598.9,2597.6,0.7]
[1724249710275,2.8812,2599.7,2599.6,7.69348]
[1724249710421,0.05,2603.1,2598.7,0.7]
[1724249710422,0.05,2600.4,2600.3,7.69142]
[1724249710620,0.05,2600.4,2598.5,8.831]
[1724249710621,0.05,2600.4,2600.0,3.84611]
[1724249710820,2.8812,2600.6,2598.8,3.84785]
[1724249710821,0.05,2599.8,2599.7,3.84648]
[1724249711062,0.05,2599.8,2598.8,3.84785]
[1724249711289,0.05,2600.4,2600.2,3.84584]
[1724249711430,0.05,2600.4,2599.0,0.07692193]
[1724249711623,2.8812,2600.6,2600.5,7.69082]
[1724249711624,2.9312,2600.6,2600.5,7.69082]
[1724249711859,2.9312,2600.6,2600.5,3.84541]
[1724249712023,2.9312,2600.6,2600.4,3.84545]
[1724249712366,2.9312,2600.6,2598.9,0.55]
[1724249712367,0.05,2600.1,2599.9,3.84617]
[1724249712868,3.17432,2600.6,2598.9,0.55]
[1724249712869,0.05,2599.2,2598.9,3.84769]
[1724249713083,0.05,2599.2,2599.0,3.84761]
[1724249713361,2.8156,2599.4,2599.3,3.84718]
[1724249713998,2.8156,2599.4,2599.3,7.69436]
[1724249714124,2.8156,2599.4,2599.3,3.84718]
[1724249714325,0.05,2599.1,2598.0,4.45216355]
[1724249714521,0.05,2598.4,2598.0,3.84911]
[1724249714726,0.05,2598.1,2597.7,3.84941]
[1724249714963,2.8838,2598.3,2597.7,3.84941]
[1724249714964,0.05,2597.9,2597.7,3.84952]
[1724249715184,0.05,2598.1,2596.7,1.11176234]
[1724249715326,3.17218,2598.3,2596.4,3.85142]
[1724249715327,2.8838,2598.3,2598.2,11.54643]
[1724249715526,2.9121,2599.0,2598.9,3.84778]
[1724249715722,3.84347,2601.9,2598.2,1.57873868]
[1724249715723,0.05,2599.6,2598.8,3.8478]
[1724249715979,0.05,2599.6,2599.3,3.84707]